fUST/lending_fUST_20250831
["ID","MTS","AMOUNT","RATE_DAILY","PERIOD"]
[382497139,1756648246547,-500.0,0.00018048,2]
[382497141,1756648246556,-480.0,0.00018048,2]
[382497143,1756648246565,-416.95114487,0.00018048,2]
[382497145,1756648246575,-480.0,0.00018048,2]
[382497147,1756648246584,-480.0,0.00018048,2]
[382497149,1756648246594,-480.0,0.00018048,2]
[382497151,1756648246603,-480.0,0.00018048,2]
[382497153,1756648246612,-482.03,0.00018048,2]
[382497155,1756648246622,-480.0,0.00018048,2]
[382497157,1756648246631,-519.63,0.00018048,2]
[382497159,1756648246641,-759.01,0.00018048,2]
[382497161,1756648246650,-1326.61,0.00018048,2]
[382497163,1756648246659,-480.0,0.00018048,2]
[382497165,1756648246670,-480.0,0.00018048,2]
[382497167,1756648246679,-1516.95,0.00018048,2]
[382497169,1756648246688,-480.0,0.00018048,2]
[382497171,1756648246697,-480.0,0.00018048,2]
[382497173,1756648246707,-1637.92,0.00018048,2]
[382497175,1756648246716,-620.91725656,0.00018048,2]
[382497177,1756648246726,-480.0,0.00018048,2]
[382497179,1756648246735,-151.0,0.00018048,2]
[382497181,1756648246745,-596.0,0.00018048,2]
[382497183,1756648246754,-480.0,0.00018048,2]
[382497185,1756648246764,-480.0,0.00018048,2]
[382497187,1756648246773,-1500.48,0.00018048,2]
[382497189,1756648246783,-151.0,0.00018048,2]
[382497191,1756648246793,-480.0,0.00018048,2]
[382497193,1756648246802,-480.0,0.00018048,2]
[382497194,1756648246811,-480.0,0.00018048,2]
[382497196,1756648246821,-480.0,0.00018048,2]
[382497198,1756648246831,-151.0,0.00018048,2]
[382497200,1756648246840,-151.0,0.00018048,2]
[382497202,1756648246850,-880.53,0.00018048,2]
[382497205,1756648246860,-504.77,0.00018048,2]
[382497207,1756648246870,-1312.88,0.00018048,2]
[382497208,1756648246880,-1411.44,0.00018048,2]
[382497210,1756648246889,-272.52744143,0.00018048,2]
[382497212,1756648246898,-480.0,0.00018048,2]
[382497214,1756648246907,-480.0,0.00018048,2]
[382497216,1756648246916,-480.0,0.00018048,2]
[382497218,1756648246925,-480.0,0.00018048,2]
[382497220,1756648246935,-621.39,0.00018048,2]
[382497222,1756648246944,-480.0,0.00018048,2]
[382497224,1756648246953,-480.0,0.00018048,2]
[382497226,1756648246963,-480.0,0.00018048,2]
[382497228,1756648246972,-480.0,0.00018048,2]
[382497230,1756648246981,-983.6,0.00018048,2]
[382497232,1756648246990,-672.27,0.00018048,2]
[382497234,1756648246999,-480.0,0.00018048,2]
[382497236,1756648247009,-480.0,0.00018048,2]
[382497238,1756648247018,-480.0,0.00018048,2]
[382497240,1756648247027,-480.0,0.00018048,2]
[382497242,1756648247036,-193.694951,0.00018048,2]
[382497244,1756648247045,-626.4,0.00018048,2]
[382497246,1756648247054,-480.0,0.00018048,2]
[382497248,1756648247062,-480.0,0.00018048,2]
[382497250,1756648247072,-1030.98,0.00018048,2]
[382497252,1756648247081,-480.0,0.00018048,2]
[382497254,1756648247089,-480.0,0.00018048,2]
[382497256,1756648247099,-511.18,0.00018048,2]
[382497258,1756648247108,-480.0,0.00018048,2]
[382497260,1756648247117,-1250.21,0.00018048,2]
[382497262,1756648247127,-1064.21,0.00018048,2]
[382497263,1756648247137,-480.0,0.00018048,2]
[382497265,1756648247147,-515.09,0.00018048,2]
[382497267,1756648247157,-701.61,0.00018048,2]
[382497269,1756648247166,-480.0,0.00018048,2]
[382497271,1756648247177,-368.80140966,0.00018048,2]
[382497274,1756648247186,-527.63,0.00018048,2]
[382497276,1756648247197,-738.14,0.00018048,2]
[382497278,1756648247206,-529.67,0.00018048,2]
[382497279,1756648247217,-1510.62,0.00018048,2]
[382497281,1756648247228,-737.88,0.00018048,2]
[382497284,1756648247238,-1028.26,0.00018048,2]
[382497286,1756648247247,-739.85,0.00018048,2]
[382497287,1756648247258,-480.0,0.00018048,2]
[382497289,1756648247267,-729.71,0.00018048,2]
[382497291,1756648247277,-480.0,0.00018048,2]
[382497293,1756648247287,-480.0,0.00018048,2]
[382497295,1756648247296,-480.0,0.00018048,2]
[382497297,1756648247305,-663.13,0.00018048,2]
[382497299,1756648247314,-480.0,0.00018048,2]
[382497301,1756648247325,-480.0,0.00018048,2]
[382497303,1756648247335,-691.59,0.00018048,2]
[382497305,1756648247347,-480.0,0.00018048,2]
[382497307,1756648247356,-521.75,0.00018048,2]
[382497309,1756648247365,-480.0,0.00018048,2]
[382497311,1756648247374,-151.0,0.00018048,2]
[382497313,1756648247385,-480.0,0.00018048,2]
[382497315,1756648247394,-151.0,0.00018048,2]
[382497317,1756648247404,-480.0,0.00018048,2]
[382497319,1756648247414,-1546.41,0.00018048,2]
[382497321,1756648247424,-497.24,0.00018048,2]
[382497323,1756648247434,-480.0,0.00018048,2]
[382497325,1756648247443,-590.45,0.00018048,2]
[382497327,1756648247452,-480.0,0.00018048,2]
[382497329,1756648247462,-844.74,0.00018048,2]
[382497331,1756648247471,-480.0,0.00018048,2]
[382497333,1756648247480,-480.0,0.00018048,2]
[382497335,1756648247490,-954.05,0.00018048,2]
[382497337,1756648247499,-268.55060938,0.00018048,2]
[382497339,1756648247508,-1263.81,0.00018048,2]
[382497341,1756648247518,-756.23,0.00018048,2]
[382497343,1756648247527,-480.0,0.00018048,2]
[382497345,1756648247536,-1171.73,0.00018048,2]
[382497347,1756648247546,-480.0,0.00018048,2]
[382497349,1756648247555,-480.0,0.00018048,2]
[382497351,1756648247564,-480.0,0.00018048,2]
[382497353,1756648247574,-480.0,0.00018048,2]
[382497355,1756648247583,-1234.12,0.00018048,2]
[382497357,1756648247592,-480.0,0.00018048,2]
[382497359,1756648247602,-480.0,0.00018048,2]
[382497361,1756648247611,-480.0,0.00018048,2]
[382497363,1756648247620,-1322.88,0.00018048,2]
[382497365,1756648247629,-1677.83,0.00018048,2]
[382497367,1756648247639,-151.123548,0.00018048,2]
[382497369,1756648247648,-512.3,0.00018048,2]
[382497371,1756648247658,-480.0,0.00018048,2]
[382497373,1756648247668,-480.0,0.00018048,2]
[382497375,1756648247679,-480.0,0.00018048,2]
[382497377,1756648247688,-151.0,0.00018048,2]
[382497379,1756648247697,-151.0,0.00018048,2]
[382497381,1756648247706,-151.0,0.00018048,2]
[382497383,1756648247715,-151.0,0.00018048,2]
[382497385,1756648247727,-716.45,0.00018048,2]
[382497387,1756648247737,-151.0,0.00018048,2]
[382497389,1756648247746,-151.0,0.00018048,2]
[382497391,1756648247755,-480.0,0.00018048,2]
[382497393,1756648247765,-1575.89,0.00018048,2]
[382497395,1756648247775,-480.0,0.00018048,2]
[382497397,1756648247785,-480.0,0.00018048,2]
[382497399,1756648247795,-982.69,0.00018048,2]
[382497401,1756648247804,-1534.85,0.00018048,2]
[382497403,1756648247814,-480.0,0.00018048,2]
[382497405,1756648247823,-480.0,0.00018048,2]
[382497407,1756648247833,-1355.11,0.00018048,2]
[382497409,1756648247842,-480.0,0.00018048,2]
[382497410,1756648247852,-480.0,0.00018048,2]
[382497411,1756648247861,-480.0,0.00018048,2]
[382497412,1756648247870,-455.96158309,0.00018048,2]
[382497413,1756648247879,-574.78,0.00018048,2]
[382497414,1756648247889,-480.0,0.00018048,2]
[382497415,1756648247899,-570.86,0.00018048,2]
[382497416,1756648247908,-298.752792,0.00018048,2]
[382497417,1756648247927,-711.7,0.00018048,2]
[382497418,1756648247939,-1715.15,0.00018048,2]
[382497419,1756648247948,-480.0,0.00018048,2]
[382497421,1756648247958,-911.66,0.00018048,2]
[382497423,1756648247968,-480.0,0.00018048,2]
[382497425,1756648247978,-480.0,0.00018048,2]
[382497427,1756648247987,-651.92,0.00018048,2]
[382497429,1756648247997,-3352.13,0.00018048,2]
[382497431,1756648248007,-480.0,0.00018048,2]
[382497433,1756648248017,-1560.48,0.00018048,2]
[382497435,1756648248026,-151.0,0.00018048,2]
[382497437,1756648248036,-1140.7,0.00018048,2]
[382497439,1756648248046,-562.11745179,0.00018048,2]
[382497441,1756648248056,-480.0,0.00018048,2]
[382497443,1756648248065,-480.0,0.00018048,2]
[382497445,1756648248075,-480.0,0.00018048,2]
[382497447,1756648248085,-480.0,0.00018048,2]
[382497449,1756648248095,-597.07,0.00018048,2]
[382497451,1756648248105,-999.47,0.00018048,2]
[382497453,1756648248115,-151.0,0.00018048,2]
[382497455,1756648248125,-827.32,0.00018048,2]
[382497457,1756648248135,-480.0,0.00018048,2]
[382497459,1756648248145,-480.0,0.00018048,2]
[382497461,1756648248154,-483.99669531,0.00018048,2]
[382497463,1756648248164,-3203.52,0.00018048,2]
[382497465,1756648248173,-1701.75,0.00018048,2]
[382497467,1756648248183,-480.0,0.00018048,2]
[382497469,1756648248193,-542.28,0.00018048,2]
[382497471,1756648248203,-480.0,0.00018048,2]
[382497473,1756648248213,-480.0,0.00018048,2]
[382497475,1756648248222,-480.84,0.00018048,2]
[382497477,1756648248233,-1648.18,0.00018048,2]
[382497479,1756648248242,-974.78,0.00018048,2]
[382497481,1756648248252,-835.03,0.00018048,2]
[382497483,1756648248262,-480.0,0.00018048,2]
[382497485,1756648248272,-480.0,0.00018048,2]
[382497487,1756648248282,-821.92,0.00018048,2]
[382497489,1756648248292,-151.0,0.00018048,2]
[382497491,1756648248303,-480.0,0.00018048,2]
[382497494,1756648248314,-164.34718,0.00018048,2]
[382497496,1756648248325,-776.54,0.00018048,2]
[382497498,1756648248341,-480.0,0.00018048,2]
[382497500,1756648248360,-1122.48,0.00018048,2]
[382497502,1756648248380,-480.0,0.00018048,2]
[382497504,1756648248391,-1159.85,0.00018048,2]
[382497505,1756648248407,-480.0,0.00018048,2]
[382497508,1756648248417,-1777.94,0.00018048,2]
[382497509,1756648248427,-480.0,0.00018048,2]
[382497512,1756648248440,-480.0,0.00018048,2]
[382497514,1756648248450,-1414.55,0.00018048,2]
[382497516,1756648248460,-480.0,0.00018048,2]
[382497518,1756648248474,-768.29,0.00018048,2]
[382497520,1756648248484,-480.0,0.00018048,2]
[382497522,1756648248495,-480.0,0.00018048,2]
[382497524,1756648248505,-814.85,0.00018048,2]
[382497526,1756648248515,-615.12,0.00018048,2]
[382497528,1756648248525,-854.31,0.00018048,2]
[382497530,1756648248534,-1365.61,0.00018048,2]
[382497532,1756648248543,-1644.56,0.00018048,2]
[382497534,1756648248552,-544.33,0.00018048,2]
[382497536,1756648248562,-1102.14,0.00018048,2]
[382497538,1756648248572,-480.0,0.00018048,2]
[382497540,1756648248581,-711.17,0.00018048,2]
[382497542,1756648248591,-5508.12,0.00018048,2]
[382497544,1756648248601,-1178.41,0.00018048,2]
[382497546,1756648248611,-1441.86,0.00018048,2]
[382497548,1756648248621,-480.0,0.00018048,2]
[382497550,1756648248632,-480.0,0.00018048,2]
[382497552,1756648248642,-1062.62,0.00018048,2]
[382497554,1756648248653,-1907.62,0.00018048,2]
[382497557,1756648248663,-480.0,0.00018048,2]
[382497559,1756648248673,-480.0,0.00018048,2]
[382497560,1756648248684,-480.0,0.00018048,2]
[382497563,1756648248694,-3449.22,0.00018048,2]
[382497565,1756648248704,-480.0,0.00018048,2]
[382497567,1756648248715,-533.26,0.00018048,2]
[382497569,1756648248725,-480.0,0.00018048,2]
[382497571,1756648248735,-1144.2,0.00018048,2]
[382497573,1756648248747,-1028.65,0.00018048,2]
[382497575,1756648248756,-2445.3,0.00018048,2]
[382497577,1756648248766,-686.6,0.00018048,2]
[382497579,1756648248776,-9385.18,0.00018048,2]
[382497581,1756648248785,-1033.84,0.00018048,2]
[382497583,1756648248795,-480.0,0.00018048,2]
[382497585,1756648248806,-480.0,0.00018048,2]
[382497586,1756648248820,-1465.55,0.00018048,2]
[382497589,1756648248830,-1130.19,0.00018048,2]
[382497590,1756648248840,-480.0,0.00018048,2]
[382497593,1756648248849,-480.0,0.00018048,2]
[382497595,1756648248859,-526.94,0.00018048,2]
[382497597,1756648248868,-353.19770667,0.00018048,2]
[382497598,1756648248879,-805.99,0.00018048,2]
[382497601,1756648248889,-480.0,0.00018048,2]
[382497603,1756648248898,-480.0,0.00018048,2]
[382497605,1756648248908,-4195.76,0.00018048,2]
[382497607,1756648248918,-622.34,0.00018048,2]
[382497609,1756648248928,-517.86,0.00018048,2]
[382497610,1756648248937,-634.45,0.00018048,2]
[382497633,1756648249145,-480.0,0.00018048,2]
[382497635,1756648249155,-1102.7,0.00018048,2]
[382497637,1756648249164,-2554.45,0.00018048,2]
[382497639,1756648249175,-879.99,0.00018048,2]
[382497641,1756648249184,-686.19,0.00018048,2]
[382497643,1756648249194,-818.91,0.00018048,2]
[382497645,1756648249203,-1079.18,0.00018048,2]
[382497647,1756648249213,-1915.81,0.00018048,2]
[382497649,1756648249222,-480.0,0.00018048,2]
[382497652,1756648249232,-510.46,0.00018048,2]
[382497654,1756648249242,-480.0,0.00018048,2]
[382497655,1756648249251,-646.85,0.00018048,2]
[382497657,1756648249260,-497.52,0.00018048,2]
[382497659,1756648249270,-696.26,0.00018048,2]
[382497661,1756648249280,-1676.23,0.00018048,2]
[382497663,1756648249290,-480.0,0.00018048,2]
[382497665,1756648249299,-1631.59,0.00018048,2]
[382497667,1756648249309,-480.0,0.00018048,2]
[382497670,1756648249318,-501.46,0.00018048,2]
[382497672,1756648249328,-480.0,0.00018048,2]
[382497674,1756648249342,-615.27,0.00018048,2]
[382497676,1756648249351,-932.22,0.00018048,2]
[382497678,1756648249361,-544.64,0.00018048,2]
[382497679,1756648249371,-480.0,0.00018048,2]
[382497681,1756648249381,-1345.21,0.00018048,2]
[382497683,1756648249390,-151.0,0.00018048,2]
[382497685,1756648249399,-151.0,0.00018048,2]
[382497687,1756648249409,-480.0,0.00018048,2]
[382497689,1756648249419,-594.45,0.00018048,2]
[382497691,1756648249428,-1337.19,0.00018048,2]
[382497693,1756648249438,-480.0,0.00018048,2]
[382497695,1756648249447,-1978.07,0.00018048,2]
[382497697,1756648249457,-2159.45,0.00018048,2]
[382497699,1756648249466,-1391.58,0.00018048,2]
[382497701,1756648249475,-1400.49,0.00018048,2]
[382497703,1756648249484,-815.94,0.00018048,2]
[382497705,1756648249494,-151.0,0.00018048,2]
[382497708,1756648249504,-151.0,0.00018048,2]
[382497710,1756648249520,-876.2,0.00018048,2]
[382497712,1756648249530,-151.0,0.00018048,2]
[382497714,1756648249539,-151.0,0.00018048,2]
[382497716,1756648249548,-3497.53,0.00018048,2]
[382497718,1756648249557,-7027.02,0.00018048,2]
[382497719,1756648249567,-996.41,0.00018048,2]
[382497721,1756648249576,-480.0,0.00018048,2]
[382497723,1756648249586,-480.0,0.00018048,2]
[382497725,1756648249595,-480.0,0.00018048,2]
[382497727,1756648249605,-797.47,0.00018048,2]
[382497729,1756648249615,-1000.0,0.00018048,2]
[382497731,1756648249625,-1000.0,0.00018048,2]
[382497733,1756648249635,-1000.0,0.00018048,2]
[382497735,1756648249644,-1000.0,0.00018048,2]
[382497737,1756648249653,-1000.0,0.00018048,2]
[382497739,1756648249663,-1000.0,0.00018048,2]
[382497741,1756648249672,-1000.0,0.00018048,2]
[382497743,1756648249681,-1000.0,0.00018048,2]
[382497745,1756648249690,-1000.0,0.00018048,2]
[382497747,1756648249700,-908.84,0.00018048,2]
[382497749,1756648249709,-1000.0,0.00018048,2]
[382497751,1756648249719,-1000.0,0.00018048,2]
[382497753,1756648249728,-1000.0,0.00018048,2]
[382497755,1756648249737,-1000.0,0.00018048,2]
[382497757,1756648249746,-1000.0,0.00018048,2]
[382497759,1756648249755,-1000.0,0.00018048,2]
[382497761,1756648249765,-1476.02,0.00018048,2]
[382497763,1756648249774,-1000.0,0.00018048,2]
[382497765,1756648249783,-1000.0,0.00018048,2]
[382497767,1756648249793,-1000.0,0.00018048,2]
[382497769,1756648249802,-151.0,0.00018048,2]
[382497771,1756648249812,-1000.0,0.00018048,2]
[382497774,1756648249822,-151.0,0.00018048,2]
[382497776,1756648249831,-1000.0,0.00018048,2]
[382497777,1756648249841,-1000.0,0.00018048,2]
[382497780,1756648249851,-1000.0,0.00018048,2]
[382497782,1756648249860,-1000.0,0.00018048,2]
[382497784,1756648249870,-151.0,0.00018048,2]
[382497786,1756648249880,-480.0,0.00018048,2]
[382497787,1756648249889,-1000.0,0.00018048,2]
[382497790,1756648249899,-284.048892,0.00018048,2]
[382497791,1756648249908,-868.837679,0.00018048,2]
[382497793,1756648249918,-3020.08,0.00018048,2]
[382497795,1756648249928,-677.86,0.00018048,2]
[382497798,1756648249937,-1153.11,0.00018048,2]
[382497799,1756648249947,-6707.61,0.00018048,2]
[382497801,1756648249956,-151.0,0.00018048,2]
[382497803,1756648249966,-393.189581,0.00018048,2]
[382497805,1756648249975,-151.0,0.00018048,2]
[382497807,1756648249985,-393.189581,0.00018048,2]
[382497809,1756648249994,-207.98,0.00018048,2]
[382497811,1756648250003,-393.189581,0.00018048,2]
[382497813,1756648250013,-393.189581,0.00018048,2]
[382497815,1756648250022,-398.67,0.00018048,2]
[382497817,1756648250032,-393.189581,0.00018048,2]
[382497819,1756648250041,-393.189581,0.00018048,2]
[382497821,1756648250051,-302.59980593,0.00018049,2]
[382497823,1756648250060,-480.0,0.00018049,2]
[382497825,1756648250069,-667.48,0.00018049,2]
[382497827,1756648250078,-561.94,0.00018049,2]
[382497829,1756648250088,-480.0,0.00018049,2]
[382497831,1756648250097,-502.97,0.00018049,2]
[382497833,1756648250106,-151.0,0.00018049,2]
[382497835,1756648250116,-151.0,0.00018049,2]
[382497837,1756648250125,-151.0,0.00018049,2]
[382497839,1756648250135,-500.0,0.00018049,2]
[382497841,1756648250144,-500.0,0.00018049,2]
[382497843,1756648250154,-500.0,0.00018049,2]
[382497845,1756648250163,-500.0,0.00018049,2]
[382497847,1756648250173,-151.0,0.00018049,2]
[382497849,1756648250182,-213.88174703,0.00018049,2]
[382497851,1756648250191,-500.0,0.00018049,2]
[382497853,1756648250200,-151.0,0.00018049,2]
[382497855,1756648250210,-151.0,0.00018049,2]
[382497857,1756648250219,-500.0,0.00018049,2]
[382497859,1756648250229,-1413.0,0.00018049,2]
[382497861,1756648250238,-500.0,0.00018049,2]
[382497862,1756648250248,-458.0,0.0001805,2]
[382497864,1756648250258,-341.9881509,0.00018082,2]
[382497866,1756648250267,-480.0,0.00018167,2]
[382497868,1756648250276,-858.04,0.00018167,2]
[382497870,1756648250286,-774.57,0.00018167,2]
[382497872,1756648250295,-2181.98,0.00018167,2]
[382497874,1756648250304,-480.0,0.00018167,2]
[382497876,1756648250314,-1106.49,0.00018167,2]
[382497878,1756648250323,-1405.3,0.00018167,2]
[382497880,1756648250332,-1461.57,0.00018167,2]
[382497882,1756648250346,-1150.1,0.00018167,2]
[382497884,1756648250355,-695.36,0.00018167,2]
[382497886,1756648250364,-685.42,0.00018167,2]
[382497888,1756648250374,-480.0,0.00018167,2]
[382497890,1756648250385,-655.64,0.00018167,2]
[382497892,1756648250394,-871.72,0.00018167,2]
[382497894,1756648250404,-1086.19,0.00018167,2]
[382497896,1756648250415,-716.56,0.00018167,2]
[382497898,1756648250425,-768.76,0.00018167,2]
[382497900,1756648250434,-1521.57,0.00018167,2]
[382497902,1756648250443,-1474.76,0.00018167,2]
[382497904,1756648250452,-1107.78,0.00018167,2]
[382497906,1756648250461,-594.32,0.00018167,2]
[382497908,1756648250471,-200.0,0.00018167,3]
[382497910,1756648250480,-200.0,0.00018167,3]
[382497912,1756648250489,-200.0,0.00018167,3]
[382497914,1756648250499,-200.0,0.00018167,3]
[382497916,1756648250508,-200.0,0.00018167,3]
[382497918,1756648250518,-480.0,0.00018167,2]
[382497920,1756648250527,-1378.71,0.00018167,2]
[382497923,1756648250537,-754.17,0.00018167,2]
[382497925,1756648250547,-1730.85,0.00018167,2]
[382497927,1756648250557,-480.0,0.00018167,2]
[382497929,1756648250566,-1383.34,0.00018167,2]
[382497931,1756648250575,-480.0,0.00018167,2]
[382497933,1756648250584,-480.0,0.00018167,2]
[382497934,1756648250593,-975.0,0.00018198,2]
[382497937,1756648250603,-632.0,0.00018198,2]
[382497938,1756648250612,-2152.0,0.00018198,2]
[382497941,1756648250623,-480.0,0.00018208,2]
[382497943,1756648250632,-157.371673,0.00018255,15]
[382497945,1756648250642,-157.371673,0.00018255,15]
[382497947,1756648250652,-157.371673,0.00018257,10]
[382497949,1756648250661,-839.79,0.00018273,2]
[382497951,1756648250672,-168.0,0.00018277,2]
[382497953,1756648250682,-600.0,0.000183,2]
[382497955,1756648250692,-480.0,0.0001832,2]
[382497957,1756648250702,-1000.0,0.00018321,2]
[382497959,1756648250713,-1001.5677558,0.00018321,2]
[382497961,1756648250722,-1000.0,0.00018321,2]
[382497963,1756648250733,-502.21089762,0.00018321,2]
[382497965,1756648250743,-1000.0,0.00018321,2]
[382497967,1756648250752,-1000.0,0.00018321,2]
[382497969,1756648250762,-1000.0,0.00018321,2]
[382497971,1756648250771,-579.34668092,0.00018321,2]
[382497973,1756648250780,-1000.0,0.00018321,2]
[382497975,1756648250790,-616.86118799,0.00018321,2]
[382497977,1756648250799,-1000.0,0.00018321,2]
[382497979,1756648250809,-486.9843952,0.00018321,2]
[382497981,1756648250819,-1006.98902311,0.00018321,2]
[382497983,1756648250829,-1000.0,0.00018321,2]
[382497985,1756648250838,-1000.0,0.00018321,2]
[382497987,1756648250848,-1000.0,0.00018321,2]
[382497989,1756648250858,-1000.0,0.00018321,2]
[382497991,1756648250867,-252.29239426,0.00018321,2]
[382497993,1756648250876,-1000.0,0.00018321,2]
[382497995,1756648250886,-1000.0,0.00018321,2]
[382497997,1756648250896,-1000.0,0.00018321,2]
[382497999,1756648250905,-480.0,0.00018321,2]
[382498001,1756648250914,-1411.15,0.00018321,2]
[382498004,1756648250925,-480.0,0.00018321,2]
[382498006,1756648250934,-603.37,0.00018321,2]
[382498008,1756648250944,-480.0,0.00018321,2]
[382498010,1756648250953,-588.24,0.00018321,2]
[382498012,1756648250962,-480.0,0.00018321,2]
[382498014,1756648250971,-151.0,0.00018321,2]
[382498016,1756648250981,-480.0,0.00018321,2]
[382498018,1756648250992,-480.0,0.00018321,2]
[382498020,1756648251001,-480.0,0.00018321,2]
[382498022,1756648251011,-480.0,0.00018321,2]
[382498024,1756648251020,-974.13,0.00018321,2]
[382498026,1756648251031,-676.51,0.00018321,2]
[382498028,1756648251041,-151.0,0.00018321,2]
[382498030,1756648251051,-480.0,0.00018321,2]
[382498032,1756648251060,-480.0,0.00018321,2]
[382498034,1756648251070,-480.0,0.00018321,2]
[382498036,1756648251079,-480.0,0.00018321,2]
[382498038,1756648251089,-480.0,0.00018321,2]
[382498040,1756648251098,-725.48,0.00018321,2]
[382498042,1756648251107,-480.0,0.00018321,2]
[382498044,1756648251116,-480.0,0.00018321,2]
[382498046,1756648251126,-810.4,0.00018321,2]
[382498048,1756648251136,-480.0,0.00018321,2]
[382498050,1756648251146,-480.0,0.00018321,2]
[382498052,1756648251155,-873.75,0.00018321,2]
[382498054,1756648251164,-1082.45,0.00018321,2]
[382498056,1756648251174,-693.75,0.00018321,2]
[382498058,1756648251183,-812.27,0.00018321,2]
[382498060,1756648251192,-518.04,0.00018321,2]
[382498062,1756648251202,-1063.27,0.00018321,2]
[382498064,1756648251212,-914.82,0.00018321,2]
[382498066,1756648251221,-480.0,0.00018321,2]
[382498068,1756648251231,-2081.49,0.00018321,2]
[382498070,1756648251241,-2367.83,0.00018321,2]
[382498072,1756648251252,-480.0,0.00018321,2]
[382498074,1756648251262,-930.11,0.00018321,2]
[382498076,1756648251271,-480.81,0.00018321,2]
[382498078,1756648251280,-210.98623034,0.00018321,2]
[382498080,1756648251290,-480.0,0.00018322,2]
[382498081,1756648251300,-482.69,0.00018322,2]
[382498084,1756648251310,-480.0,0.00018322,2]
[382498085,1756648251320,-480.0,0.00018322,2]
[382498087,1756648251330,-480.0,0.00018322,2]
[382498090,1756648251342,-480.0,0.00018322,2]
[382498091,1756648251351,-480.0,0.00018322,2]
[382498093,1756648251361,-480.0,0.00018322,2]
[382498095,1756648251370,-480.0,0.00018322,2]
[382498097,1756648251378,-664.77,0.00018322,2]
[382498099,1756648251389,-599.01,0.00018322,2]
[382498101,1756648251399,-480.0,0.00018322,2]
[382498103,1756648251409,-434.75143549,0.00018322,2]
[382498105,1756648251420,-480.0,0.00018322,2]
[382498108,1756648251430,-1069.13,0.00018322,2]
[382498109,1756648251439,-1305.71,0.00018322,2]
[382498112,1756648251449,-480.0,0.00018322,2]
[382498113,1756648251458,-480.0,0.00018322,2]
[382498116,1756648251468,-480.0,0.00018322,2]
[382498117,1756648251477,-480.0,0.00018322,2]
[382498119,1756648251486,-480.0,0.00018322,2]
[382498121,1756648251495,-501.17,0.00018322,2]
[382498123,1756648251505,-480.0,0.00018322,2]
[382498125,1756648251514,-480.0,0.00018322,2]
[382498127,1756648251523,-480.0,0.00018322,2]
[382498129,1756648251533,-480.0,0.00018322,2]
[382498131,1756648251543,-480.0,0.00018322,2]
[382498133,1756648251553,-1356.92,0.00018322,2]
[382498135,1756648251561,-480.0,0.00018322,2]
[382498137,1756648251570,-480.0,0.00018322,2]
[382498139,1756648251580,-480.0,0.00018322,2]
[382498141,1756648251590,-480.0,0.00018322,2]
[382498143,1756648251599,-480.0,0.00018322,2]
[382498145,1756648251608,-480.0,0.00018322,2]
[382498147,1756648251618,-809.59,0.00018322,2]